[Event "1000GM Spring Break Schev-B 2024"]
[Site "San Jose"]
[Date "2024.04.01"]
[Round "4.5"]
[White "Rodi, Luis Ernesto"]
[Black "Rajaram, Anika"]
[Result "1-0"]
[ECO "B48"]
[WhiteElo "2193"]
[BlackElo "1850"]
[Annotator "RC"]
[PlyCount "111"]
[EventDate "2024.03.28"]
[EventType "schev"]
[EventCountry "USA"]
[SourceTitle "playchess.com"]
[Source "ChessBase"]
[SourceQuality "1"]
[TimeControl "5400+30"]

1. e4 {[%emt 0:01:48]} c5 {[%emt 0:02:54]} 2. Nf3 {[%emt 0:00:08]} e6 {[%emt 0:00:11]} 3. d4 {[%emt 1:30:04]} cxd4 {[%emt 0:00:04]} 4. Nxd4 {[%emt 0:00:00]} Nc6 {[%emt 0:00:10]} 5. Nc3 {[%emt 0:01:00]} Qc7 {[%emt 0:00:10]} 6. Be3 {[%emt 0:00:00]} a6 {[%emt 0:00:05]} 7. Qf3 {[%emt 0:00:00]} Nf6 {[%emt 0:00:03]} 8. O-O-O {[%emt 0:00:00]} Ne5 {[%emt 0:00:09]} 9. Qg3 {[%emt 0:00:00]} b5 {[%emt 0:00:07]} 10. f4 {[%emt 0:00:00]} Neg4 {[%emt 0:00:05]} 11. Bg1 {[%emt 0:00:00]} h5 {[%emt 0:00:07]} 12. e5 {[%emt 0:00:00]} b4 {[%emt 0:00:09]} 13. Na4 {[%emt 0:00:00]} Nd5 {[%emt 0:00:05]} 14. h3 {[%emt 0:00:00]} Nh6 {[%emt 0:00:03]} 15. Bd3 {[%emt 0:00:00]} g6 {[%emt 0:00:04]} 16. Be4 {[%emt 0:00:00]} Bb7 {[%emt 0:00:24]} 17. Qf3 {[%emt 0:00:00]} Be7 {[%emt 0:09:02]} 18. Bf2 {[%emt 0:00:00]} Nf5 {[%emt 0:17:33]} 19. g4 {[%emt 0:00:00]} Nxd4 {[%emt 0:01:27]} 20. Bxd4 {[%emt 0:00:00]} Bc6 {[%emt 0:07:02]} 21. Nc5 {[%emt 0:00:00]} Qa5 {[%emt 0:10:25]} 22. Nb3 {[%emt 0:00:00]} Qc7 {[%emt 0:03:20]} 23. f5 {[%emt 0:00:00]} gxf5 {[%emt 0:09:26]} 24. gxf5 {[%emt 0:00:00]} Bg5+ {[%emt 0:05:08]} 25. Kb1 {[%emt 0:00:00]} a5 {[%emt 0:04:49]} 26. Rhg1 {[%emt 0:00:00]} Be7 {[%emt 0:02:49]} 27. Rdf1 {[%emt 0:00:00]} O-O-O {[%emt 0:02:32]} 28. Rg7 {[%emt 0:00:00]} a4 {[%emt 0:02:30]} 29. Nd2 {[%emt 0:00:00]} Qb7 {[%emt 0:09:32]} 30. Kc1 {[%emt 0:00:00]} Rdf8 {[%emt 0:03:56]} 31. f6 {[%emt 0:00:00]} Bd8 {[%emt 0:01:21]} 32. Nc4 {[%emt 0:00:00]} Bc7 {[%emt 0:01:25]} 33. Rd1 {[%emt 0:00:00]} Qa6 {[%emt 0:02:58]} 34. Ne3 {[%emt 0:00:00]} Nxe3 {[%emt 0:01:10]} 35. Qxe3 {[%emt 0:00:00]} Qb5 {[%emt 0:03:32]} 36. Bd3 {[%emt 0:00:00]} Qb7 {[%emt 0:02:00]} 37. Bc5 {[%emt 0:00:00]} Rfg8 {[%emt 0:00:46]} 38. Rdg1 {[%emt 0:00:00]} Re8 {[%emt 0:00:37]} 39. Rxf7 {[%emt 0:00:00]} Qb8 {[%emt 0:00:50]} 40. Ba6+ {[%emt 0:00:00]} Bb7 {[%emt 0:00:15]} 41. Qd3 {[%emt 0:00:00]} Bxa6 {[%emt 0:00:53]} 42. Qxa6+ {[%emt 0:00:00]} Qb7 {[%emt 0:00:15]} 43. Qxa4 {[%emt 0:00:00]} Bxe5 {[%emt 0:00:42]} 44. Rd1 {[%emt 0:00:00]} Rd8 {[%emt 0:00:24]} 45. Bxb4 {[%emt 0:00:00]} Qc6 {[%emt 0:00:31]} 46. Qb3 {[%emt 0:00:00]} Bc7 {[%emt 0:00:39]} 47. Rg7 {[%emt 0:00:00]} d5 {[%emt 0:00:34]} 48. f7 {[%emt 0:00:00]} Bf4+ {[%emt 0:00:20]} 49. Kb1 {[%emt 0:00:00]} Bd6 {[%emt 0:00:38]} 50. Bxd6 {[%emt 0:00:00]} Rxd6 {[%emt 0:00:22]} 51. Rg8+ {[%emt 0:00:00]} Rd8 {[%emt 0:00:20]} 52. Qg3 {[%emt 0:00:00]} Qc7 {[%emt 0:00:47]} 53. Qxc7+ {[%emt 0:00:00]} Kxc7 {[%emt 0:00:02]} 54. Rdg1 {[%emt 0:00:00]} Rf8 {[%emt 0:00:50]} 55. Rxh8 {[%emt 0:00:00]} Rxh8 {[%emt 0:00:02]} 56. Rg8 {[%emt 0:00:00]} 1-0

[Event "1000GM Spring Break Schev-B 2024"]
[Site "San Jose"]
[Date "2024.04.01"]
[Round "5.2"]
[White "Dominguez Aguilar, Guillermo"]
[Black "Pulijala, Akshaj"]
[Result "1-0"]
[ECO "B23"]
[WhiteElo "2284"]
[BlackElo "1815"]
[Annotator "RC"]
[PlyCount "93"]
[EventDate "2024.03.28"]
[EventType "schev"]
[EventCountry "USA"]
[SourceTitle "playchess.com"]
[Source "ChessBase"]
[SourceQuality "1"]
[TimeControl "5400+30"]

1. e4 {[%emt 0:00:12]} c5 {[%emt 1:31:00]} 2. Nc3 Nc6 3. f4 d6 4. Nf3 g6 5. Bb5 Bg7 6. Bxc6+ bxc6 7. O-O Bg4 8. h3 Bxf3 9. Qxf3 e6 10. f5 Qd7 11. d3 f6 12. Qg3 Ne7 13. fxe6 Qxe6 14. Bf4 Rd8 15. Rae1 O-O 16. b3 Qd7 {[%emt 0:00:00]} 17. Nd1 {[%emt 0:07:41]} d5 {[%emt 0:00:00]} 18. Bc7 {[%emt 0:07:22]} Rde8 {[%emt 0:00:00]} 19. Bd6 {[%emt 0:00:15]} dxe4 {[%emt 0:00:00]} 20. dxe4 {[%emt 0:00:56]} Rf7 {[%emt 0:00:00]} 21. Bxc5 {[%emt 0:01:20]} Nc8 {[%emt 0:00:00]} 22. Nf2 {[%emt 0:02:01]} Bf8 {[%emt 0:00:00]} 23. Qc3 {[%emt 0:02:55]} Nd6 {[%emt 0:00:00]} 24. a4 {[%emt 0:04:49]} Qe6 {[%emt 0:00:00]} 25. Bd4 {[%emt 0:29:45]} Bg7 26. Qc5 {[%emt 0:00:30]} Bf8 27. Qxc6 {[%emt 0:00:30]} Rc8 28. Qd5 {[%emt 0:00:30]} Qxd5 {[%emt 0:00:00]} 29. exd5 {[%emt 0:00:30]} Nf5 {[%emt 0:00:00]} 30. c3 {[%emt 0:00:30]} Nxd4 {[%emt 0:00:00]} 31. cxd4 {[%emt 0:00:30]} Rd8 {[%emt 0:00:00]} 32. Re6 {[%emt 0:00:30]} f5 {[%emt 0:00:00]} 33. Nd3 {[%emt 0:00:30]} Rxd5 {[%emt 0:00:00]} 34. Ne5 {[%emt 0:00:30]} Rb7 {[%emt 0:00:00]} 35. g4 {[%emt 0:00:30]} Bh6 {[%emt 0:00:00]} 36. gxf5 {[%emt 0:00:30]} gxf5 {[%emt 0:00:00]} 37. Rxh6 {[%emt 0:00:30]} Rg7+ {[%emt 0:00:00]} 38. Kh2 {[%emt 0:00:30]} Rxd4 {[%emt 0:00:00]} 39. Rf2 {[%emt 0:00:30]} f4 {[%emt 0:00:00]} 40. Rf6 {[%emt 0:02:56]} Re4 {[%emt 0:05:16]} 41. Nc4 {[%emt 0:00:41]} h5 {[%emt 0:00:30]} 42. R6xf4 {[%emt 0:00:30]} Rxf4 {[%emt 0:00:00]} 43. Rxf4 {[%emt 0:00:00]} Rb7 {[%emt 0:00:27]} 44. Na5 {[%emt 0:00:13]} Rc7 {[%emt 0:00:30]} 45. Rf5 {[%emt 0:00:30]} Rh7 {[%emt 0:00:30]} 46. Nc6 {[%emt 0:00:30]} Kg7 {[%emt 0:00:30]} 47. Ra5 {[%emt 0:00:30]} 1-0

[Event "1000GM Spring Break Schev-B 2024"]
[Site "San Jose"]
[Date "2024.04.01"]
[Round "5.3"]
[White "Varela Velazquez, Carlos Francisco"]
[Black "Sawhney, Yuvraj Singh"]
[Result "1-0"]
[ECO "E68"]
[WhiteElo "2113"]
[BlackElo "1846"]
[Annotator "RC"]
[PlyCount "115"]
[EventDate "2024.03.28"]
[EventType "schev"]
[EventCountry "USA"]
[SourceTitle "playchess.com"]
[Source "ChessBase"]
[SourceQuality "1"]
[TimeControl "5400+30"]

1. Nf3 {[%emt 0:00:04]} Nf6 {[%emt 0:00:02]} 2. g3 {[%emt 0:00:11]} g6 {[%emt 0:00:09]} 3. b3 {[%emt 0:00:04]} Bg7 {[%emt 0:00:08]} 4. Bb2 {[%emt 0:00:03]} O-O {[%emt 0:00:31]} 5. Bg2 {[%emt 0:00:05]} d6 {[%emt 0:00:04]} 6. d4 {[%emt 0:00:06]} Nbd7 {[%emt 0:00:24]} 7. O-O {[%emt 0:00:07]} Re8 {[%emt 0:00:06]} 8. c4 {[%emt 0:01:01]} c6 {[%emt 0:01:17]} 9. Nc3 {[%emt 0:03:34]} e5 {[%emt 0:00:14]} 10. e4 {[%emt 0:07:39]} exd4 {[%emt 0:00:42]} 11. Nxd4 {[%emt 0:03:04]} Nc5 {[%emt 0:01:04]} 12. Qc2 {[%emt 0:07:02]} Bd7 {[%emt 0:06:07]} 13. Rad1 {[%emt 0:09:49]} Rc8 {[%emt 0:07:45]} 14. Rfe1 {[%emt 0:10:44]} b5 {[%emt 0:06:02]} 15. cxb5 {[%emt 0:08:39]} cxb5 {[%emt 0:00:07]} 16. Ndxb5 {[%emt 0:12:24]} Bxb5 {[%emt 0:07:07]} 17. Nxb5 {[%emt 0:00:18]} Ncxe4 {[%emt 0:00:51]} 18. Qd3 {[%emt 0:06:01]} Qb6 {[%emt 0:14:37]} 19. Bd4 {[%emt 0:02:11]} Nc5 {[%emt 0:04:23]} 20. Qf1 {[%emt 0:00:42]} Rcd8 {[%emt 0:07:19]} 21. b4 {[%emt 0:03:19]} Rxe1 {[%emt 0:02:41]} 22. Rxe1 {[%emt 0:03:46]} a6 {[%emt 0:00:26]} 23. bxc5 {[%emt 0:00:25]} Qxb5 {[%emt 0:00:18]} 24. Qxb5 {[%emt 0:00:40]} axb5 {[%emt 0:00:06]} 25. c6 {[%emt 0:00:13]} Ne8 {[%emt 0:03:51]} 26. Bb6 {[%emt 0:01:28]} Rc8 {[%emt 0:00:33]} 27. c7 {[%emt 0:01:48]} Nxc7 {[%emt 0:03:53]} 28. Rc1 {[%emt 0:00:30]} d5 {[%emt 0:01:57]} 29. Rxc7 {[%emt 0:00:32]} Rxc7 {[%emt 0:00:29]} 30. Bxc7 {[%emt 0:00:02]} d4 {[%emt 0:00:13]} 31. Bf1 {[%emt 0:00:30]} b4 {[%emt 0:00:14]} 32. Bb6 {[%emt 0:00:18]} d3 {[%emt 0:00:19]} 33. Bxd3 {[%emt 0:00:03]} Bc3 {[%emt 0:00:05]} 34. Ba5 {[%emt 0:00:26]} f5 {[%emt 0:00:17]} 35. a3 {[%emt 0:00:15]} bxa3 {[%emt 0:00:06]} 36. Bxc3 {[%emt 0:00:09]} Kf7 {[%emt 0:00:08]} 37. Bc4+ {[%emt 0:00:04]} Ke7 {[%emt 0:00:09]} 38. Bb4+ {[%emt 0:00:02]} Kd7 {[%emt 0:00:08]} 39. Bxa3 {[%emt 0:00:03]} Ke8 {[%emt 0:00:18]} 40. Bg8 {[%emt 0:00:07]} h6 {[%emt 0:00:14]} 41. h4 {[%emt 0:00:12]} g5 {[%emt 0:00:04]} 42. h5 {[%emt 0:00:09]} Kd7 {[%emt 0:00:11]} 43. Bb2 {[%emt 0:00:04]} Kd6 {[%emt 0:00:09]} 44. f4 {[%emt 0:00:14]} gxf4 {[%emt 0:00:10]} 45. gxf4 {[%emt 0:00:02]} Ke7 {[%emt 0:00:13]} 46. Bg7 {[%emt 0:00:07]} Ke8 {[%emt 0:00:09]} 47. Be6 {[%emt 0:00:06]} Ke7 {[%emt 0:00:04]} 48. Bxf5 {[%emt 0:00:06]} Kf7 {[%emt 0:00:04]} 49. Bxh6 {[%emt 0:00:05]} Kf6 {[%emt 0:00:05]} 50. Bg4 {[%emt 0:00:05]} Kf7 {[%emt 0:00:06]} 51. Bg5 {[%emt 0:00:05]} Kg8 {[%emt 0:00:09]} 52. Be6+ {[%emt 0:00:05]} Kh8 {[%emt 0:00:07]} 53. h6 {[%emt 0:00:13]} Kh7 {[%emt 0:00:04]} 54. f5 {[%emt 0:00:25]} Kh8 {[%emt 0:00:05]} 55. f6 {[%emt 0:00:17]} Kh7 {[%emt 0:00:05]} 56. f7 {[%emt 0:00:42]} Kh8 {[%emt 0:00:04]} 57. f8=Q+ {[%emt 0:00:13]} Kh7 {[%emt 0:00:07]} 58. Bf5# {[%emt 0:00:03]} 1-0

[Event "1000GM Spring Break Schev-B 2024"]
[Site "San Jose"]
[Date "2024.04.01"]
[Round "5.4"]
[White "Xia, Joshua"]
[Black "Rodi, Luis Ernesto"]
[Result "0-1"]
[ECO "C84"]
[WhiteElo "1938"]
[BlackElo "2193"]
[Annotator "RC"]
[PlyCount "82"]
[EventDate "2024.03.28"]
[EventType "schev"]
[EventCountry "USA"]
[SourceTitle "playchess.com"]
[Source "ChessBase"]
[SourceQuality "1"]
[TimeControl "5400+30"]

1. e4 {[%emt 0:00:01]} e5 {[%emt 0:03:51]} 2. Nf3 {[%emt 0:00:13]} Nc6 {[%emt 0:00:12]} 3. Bb5 {[%emt 0:00:08]} a6 {[%emt 0:00:09]} 4. Ba4 {[%emt 0:00:03]} Nf6 {[%emt 0:00:08]} 5. O-O {[%emt 0:00:06]} Nxe4 {[%emt 0:00:04]} 6. d4 {[%emt 0:00:09]} Be7 {[%emt 0:00:07]} 7. Re1 {[%emt 0:03:04]} b5 {[%emt 0:00:15]} 8. d5 {[%emt 0:03:14]} Nc5 {[%emt 0:00:32]} 9. dxc6 {[%emt 0:18:53]} bxa4 {[%emt 0:03:52]} 10. Nxe5 {[%emt 0:05:40]} d5 {[%emt 0:04:05]} 11. Nc3 {[%emt 0:10:48]} Be6 {[%emt 0:01:52]} 12. Be3 {[%emt 0:02:35]} O-O {[%emt 0:01:07]} 13. Bd4 {[%emt 0:01:15]} a3 {[%emt 0:07:17]} 14. b3 {[%emt 0:03:13]} Re8 {[%emt 0:00:15]} 15. Qd2 {[%emt 0:02:14]} f6 {[%emt 0:03:16]} 16. Nf3 {[%emt 0:04:37]} Ne4 {[%emt 0:05:31]} 17. Qe3 {[%emt 0:01:31]} Bb4 {[%emt 0:03:07]} 18. Qd3 {[%emt 0:05:27]} Bf7 {[%emt 0:05:44]} 19. Re3 {[%emt 0:05:31]} Bg6 {[%emt 0:06:32]} 20. Rae1 {[%emt 0:04:09]} Nxc3 {[%emt 0:07:27]} 21. Rxe8+ {[%emt 0:04:20]} Qxe8 {[%emt 0:00:49]} 22. Rxe8+ {[%emt 0:00:36]} Rxe8 {[%emt 0:00:10]} 23. Qxa6 {[%emt 0:00:17]} Ne2+ {[%emt 0:00:05]} 24. Kh1 {[%emt 0:00:26]} Nxd4 {[%emt 0:00:09]} 25. h4 {[%emt 0:00:22]} Nxf3 {[%emt 0:05:13]} 26. gxf3 {[%emt 0:00:16]} Bxc2 {[%emt 0:00:56]} 27. Qb5 {[%emt 0:00:34]} Bd6 {[%emt 0:00:22]} 28. Qxd5+ {[%emt 0:00:18]} Kf8 {[%emt 0:00:08]} 29. b4 {[%emt 0:01:17]} Rb8 {[%emt 0:05:02]} 30. b5 {[%emt 0:00:48]} Ba4 {[%emt 0:00:33]} 31. Qe4 {[%emt 0:01:15]} Bxb5 {[%emt 0:00:20]} 32. Qxh7 {[%emt 0:00:08]} Bc4 {[%emt 0:02:14]} 33. Qh8+ {[%emt 0:01:22]} Bg8 {[%emt 0:00:06]} 34. h5 {[%emt 0:00:19]} Bf4 {[%emt 0:00:37]} 35. Kg2 {[%emt 0:00:27]} Rb2 {[%emt 0:03:21]} 36. Kh3 {[%emt 0:00:29]} Rxa2 {[%emt 0:00:11]} 37. Kg4 {[%emt 0:00:05]} Bh6 {[%emt 0:00:08]} 38. Kf5 {[%emt 0:00:24]} Rxf2 {[%emt 0:00:14]} 39. Kg6 {[%emt 0:00:07]} Rg2+ {[%emt 0:00:12]} 40. Kf5 {[%emt 0:00:08]} a2 {[%emt 0:00:21]} 41. f4 {[%emt 0:01:03]} a1=Q {[%emt 0:01:10]} 0-1

[Event "1000GM Spring Break Schev-B 2024"]
[Site "San Jose"]
[Date "2024.04.01"]
[Round "5.5"]
[White "Rajaram, Anika"]
[Black "Solis Castro, Angel Alejan"]
[Result "1-0"]
[ECO "A62"]
[WhiteElo "1850"]
[BlackElo "2071"]
[Annotator "RC"]
[PlyCount "119"]
[EventDate "2024.03.28"]
[EventType "schev"]
[EventCountry "USA"]
[SourceTitle "playchess.com"]
[Source "ChessBase"]
[SourceQuality "1"]
[TimeControl "5400+30"]

1. d4 {[%emt 0:04:34]} Nf6 {[%emt 0:02:15]} 2. c4 {[%emt 0:00:04]} e6 {[%emt 0:01:43]} 3. g3 {[%emt 0:00:07]} c5 {[%emt 0:01:47]} 4. d5 {[%emt 0:00:15]} exd5 {[%emt 0:01:08]} 5. cxd5 {[%emt 0:00:03]} d6 {[%emt 0:00:56]} 6. Nc3 {[%emt 0:00:09]} g6 {[%emt 0:02:40]} 7. Bg2 {[%emt 0:00:04]} Bg7 {[%emt 0:01:14]} 8. Nf3 {[%emt 1:29:14]} O-O {[%emt 0:02:48]} 9. O-O {[%emt 0:00:30]} Re8 {[%emt 0:04:27]} 10. Bf4 {[%emt 0:00:00]} a6 {[%emt 0:02:28]} 11. a4 {[%emt 0:00:00]} Ne4 {[%emt 1:14:34]} 12. Rc1 {[%emt 0:00:00]} Nxc3 {[%emt 0:00:00]} 13. bxc3 {[%emt 0:00:00]} b5 {[%emt 0:01:00]} 14. Re1 {[%emt 0:00:00]} Qb6 {[%emt 0:00:00]} 15. e4 {[%emt 0:03:00]} Bg4 {[%emt 0:01:00]} 16. h3 {[%emt 0:00:00]} Bxf3 {[%emt 0:00:00]} 17. Bxf3 {[%emt 0:00:00]} Nd7 {[%emt 0:00:00]} 18. Qc2 {[%emt 0:00:00]} c4 {[%emt 0:00:00]} 19. Be3 {[%emt 0:00:00]} Qa5 {[%emt 0:00:00]} 20. Be2 {[%emt 0:00:00]} Rec8 {[%emt 0:00:00]} 21. Bd4 {[%emt 0:00:00]} Bxd4 {[%emt 0:00:00]} 22. cxd4 {[%emt 0:00:00]} Nb6 {[%emt 0:00:00]} 23. axb5 {[%emt 0:00:00]} axb5 {[%emt 0:00:00]} 24. Bg4 {[%emt 0:00:00]} Re8 {[%emt 0:00:00]} 25. Rb1 {[%emt 0:00:00]} b4 {[%emt 0:00:00]} 26. e5 {[%emt 0:00:00]} b3 {[%emt 0:00:00]} 27. Qe2 {[%emt 0:00:00]} dxe5 {[%emt 0:00:00]} 28. dxe5 {[%emt 0:00:00]} Qc5 {[%emt 0:00:00]} 29. e6 {[%emt 0:00:00]} f5 {[%emt 0:00:00]} 30. Bf3 {[%emt 0:00:00]} Ra2 {[%emt 0:00:00]} 31. Rb2 {[%emt 0:01:37]} Rxb2 {[%emt 0:00:55]} 32. Qxb2 {[%emt 0:00:05]} Na4 {[%emt 0:00:09]} 33. Qf6 {[%emt 0:01:27]} Re7 {[%emt 0:01:38]} 34. Qxe7 {[%emt 0:04:32]} Qxe7 {[%emt 0:02:23]} 35. d6 {[%emt 0:00:03]} Qxd6 {[%emt 0:00:05]} 36. e7 {[%emt 0:00:01]} Qxe7 {[%emt 0:01:14]} 37. Rxe7 {[%emt 0:00:01]} c3 {[%emt 0:01:02]} 38. Bd5+ {[%emt 0:00:57]} Kf8 {[%emt 0:00:25]} 39. Rf7+ {[%emt 0:01:22]} Ke8 {[%emt 0:00:01]} 40. Bxb3 {[%emt 0:00:46]} Nc5 {[%emt 0:00:01]} 41. Rc7 {[%emt 0:00:24]} Nxb3 {[%emt 0:00:03]} 42. Rxc3 {[%emt 0:00:01]} Nd4 {[%emt 0:00:18]} 43. Rc7 {[%emt 0:00:22]} Nf3+ {[%emt 0:00:28]} 44. Kg2 {[%emt 0:00:08]} Ng5 {[%emt 0:00:04]} 45. h4 {[%emt 0:00:14]} Nf7 {[%emt 0:00:03]} 46. Kf3 {[%emt 0:00:45]} Kf8 {[%emt 0:00:08]} 47. Ke3 {[%emt 0:00:16]} Kg7 {[%emt 0:00:05]} 48. Kd4 {[%emt 0:00:10]} Kf6 {[%emt 0:00:08]} 49. Rc6+ {[%emt 0:00:08]} Ke7 {[%emt 0:01:10]} 50. Kd5 {[%emt 0:00:14]} Kd7 {[%emt 0:00:16]} 51. Ra6 {[%emt 0:00:22]} Ke7 {[%emt 0:00:09]} 52. Rb6 {[%emt 0:00:52]} Nd8 {[%emt 0:00:18]} 53. f4 {[%emt 0:01:54]} Nf7 {[%emt 0:01:04]} 54. Ra6 {[%emt 0:00:28]} Kf8 {[%emt 0:02:07]} 55. Ke6 {[%emt 0:00:23]} Nh6 {[%emt 0:00:09]} 56. Ra8+ {[%emt 0:00:23]} Kg7 {[%emt 0:00:10]} 57. Ra7+ {[%emt 0:00:09]} Kg8 {[%emt 0:00:08]} 58. h5 {[%emt 0:01:48]} Ng4 {[%emt 0:00:07]} 59. Rb7 {[%emt 0:01:02]} Kh8 {[%emt 0:02:12]} 60. Kf7 {[%emt 0:00:40]} 1-0